fUST/lending_fUST_20250306
["ID","MTS","AMOUNT","RATE_DAILY","PERIOD"]
[355554205,1741270162082,-313.82176142,0.00023105,2]
[355554206,1741270162104,-300.0,0.00025204,2]
[355554207,1741270162125,-192.47312707,0.00025205,2]
[355554208,1741270162147,-397.95039509,0.00025205,2]
[355554291,1741270238396,-102.04960491,0.00025205,2]
[355554293,1741270238406,-500.0,0.00025205,2]
[355554295,1741270238416,-500.0,0.00025205,2]
[355554297,1741270238425,-500.0,0.00025205,2]
[355554299,1741270238435,-225.06894065,0.00025205,2]
[355554301,1741270238445,-313.82176142,0.00028105,2]
[355554303,1741270238455,-313.82176142,0.00033105,2]
[355554305,1741270238464,-447.3522437,0.0003449,2]
[355554307,1741270238473,-313.006729,0.00035775,2]
[355554309,1741270238482,-163.724415,0.0003589,2]
[355554312,1741270238491,-179.3992211,0.00036029,2]
[355554314,1741270238501,-191.7553228,0.000365,120]
[355554316,1741270238512,-552.1686093,0.000365,120]
[355554400,1741270240808,-500.0,0.000365,120]
[355554595,1741270728102,-47000.0,0.00050584,31]
[355554596,1741270728128,-150.0,0.00050584,30]
[355554597,1741270728154,-4000.0,0.00050584,120]
[355554598,1741270728181,-430.15914291,0.00050584,120]
[355554599,1741270728209,-1103.78192081,0.00050584,60]
[355554600,1741270728236,-1500.0,0.00050584,120]
[355554601,1741270728263,-1270.12744,0.00050584,35]
[355554602,1741270728290,-501.0,0.00050584,120]
[355554603,1741270728317,-5000.0,0.00050584,120]
[355554604,1741270728346,-5000.0,0.00050584,120]
[355554605,1741270728375,-5000.0,0.00050584,120]
[355554606,1741270728403,-5000.0,0.00050584,120]
[355554607,1741270728434,-5000.0,0.00050584,120]
[355554608,1741270728461,-5000.0,0.00050584,120]
[355554609,1741270728487,-10000.0,0.00050584,30]
[355554610,1741270728515,-10000.0,0.00050584,120]
[355554611,1741270728540,-301362.5476358,0.00050584,120]
[355554612,1741270728566,-1246.19879965,0.00050584,30]
[355554613,1741270728592,-162.0,0.00050584,30]
[355554614,1741270728618,-500.0,0.00050584,30]
[355554615,1741270728645,-500.0,0.00050584,30]
[355554616,1741270728672,-500.0,0.00050584,30]
[355554617,1741270728700,-5000.05597165,0.00050584,90]
[355554618,1741270774982,837.21088209,0.00050584,30]
[355554619,1741270801383,500.0,0.00050584,30]
[355554621,1741270812083,500.0,0.00050584,30]
[355554622,1741270822674,500.0,0.00050584,30]
[355554623,1741270836471,482436.91820709,0.00050584,30]
[355554624,1741270993519,-1000.0,0.00050584,30]
[355554625,1741270993546,-14169.187381,0.00050584,30]
[355554626,1741270993572,-300.0,0.00050584,60]
[355554627,1741270993598,-300.0,0.00050584,60]
[355554628,1741270993623,-400.0,0.00050584,60]
[355554629,1741270993649,-2060.0,0.00050584,30]
[355554630,1741271012258,-189.583012,0.00035566,120]
[355554631,1741271012285,-2596.41097181,0.00036,31]
[355554632,1741271012314,-166.51423164,0.000364,99]
[355554633,1741271012340,-11056.0760679,0.000365,120]
[355554634,1741271012367,-291.35,0.0003747,120]
[355554635,1741271012394,-150.5,0.0003748,120]
[355554636,1741271012420,-195.48,0.0003748,120]
[355554637,1741271012448,-500.0,0.00037489,120]
[355554638,1741271012474,-484854.08571665,0.000375,120]
[355554639,1741271016821,-500000.0,0.000375,120]
[355554640,1741271021446,-1020634.65837816,0.000375,120]
[355554641,1741271021473,-602.21,0.000375,30]
[355554642,1741271021502,-633.05,0.000375,30]
[355554643,1741271021534,-546322.08175529,0.000377,30]
[355554644,1741271021563,-150.0,0.000377,30]
[355554645,1741271021592,-1753.58778224,0.00038,30]
[355554646,1741271021621,-213.885,0.00038035,50]
[355554647,1741271021648,-154.64,0.000382,120]
[355554648,1741271021675,-150.0,0.000383,30]
[355554649,1741271021705,-511.4638185,0.00038356,120]
[355554650,1741271021734,-368.4654761,0.00038356,120]
[355554651,1741271021768,-1000.0,0.00038356,30]
[355554652,1741271021799,-3045.28350608,0.00038356,120]
[355554653,1741271021835,-166.51423164,0.00038424,111]
[355554654,1741271021860,-602.21,0.000385,30]
[355554655,1741271021886,-633.05,0.000385,30]
[355554656,1741271021911,-2087.22145043,0.000385,120]
[355554657,1741271021945,-1000.0,0.0003863,30]
[355554658,1741271021988,-1000.0,0.00038904,30]
[355554659,1741271022023,-7482.15,0.00039,30]
[355554660,1741271022049,-5344.24384768,0.00039,120]
[355554661,1741271022080,-1000.0,0.00039178,30]
[355554662,1741271022114,-998.0,0.000393,120]
[355554663,1741271022140,-602.21,0.000394,30]
[355554664,1741271022165,-201.9501,0.000394,120]
[355554665,1741271022192,-243.45072,0.000394,120]
[355554666,1741271022221,-1000.0,0.00039452,30]
[355554667,1741271022256,-633.05,0.000395,30]
[355554668,1741271022287,-1000.0,0.00039726,30]
[355554669,1741271022320,-211.34737085,0.00039999,31]
[355554670,1741271022346,-396.10964504,0.00039999,31]
[355554671,1741271022375,-500.0,0.00039999,31]
[355554672,1741271022404,-500.0,0.00039999,31]
[355554673,1741271022431,-398.93024523,0.00039999,31]
[355554674,1741271022461,-381.43276049,0.00039999,31]
[355554675,1741271022488,-500.0,0.00039999,31]
[355554676,1741271022515,-326.86503265,0.00039999,31]
[355554677,1741271022545,-699.48,0.0004,120]
[355554678,1741271022572,-532384.80937837,0.0004,30]
[355554679,1741271022599,-3819.00167035,0.0004,120]
[355554680,1741271022636,-1000.0,0.0004,30]
[355554681,1741271022667,-500.0,0.0004,30]
[355554682,1741271022696,-5696.32,0.0004014,120]
[355554683,1741271022727,-1000.0,0.00040273,30]
[355554684,1741271022767,-166.51423164,0.00040447,120]
[355554685,1741271022795,-602.21,0.000405,30]
[355554686,1741271022821,-633.05,0.000405,30]
[355554687,1741271022850,-1000.0,0.00040547,30]
[355554688,1741271022881,-613.3679526,0.00040658,120]
[355554689,1741271022910,-1000.0,0.00040821,30]
[355554690,1741271022939,-1000.0,0.00041095,120]
[355554691,1741271022963,-561.03,0.00041095,120]
[355554692,1741271022987,-500.0,0.00041095,120]
[355554693,1741271023012,-687.89,0.00041095,120]
[355554694,1741271023036,-1099.59,0.00041095,120]
[355554695,1741271023060,-752.11,0.00041095,120]
[355554696,1741271023084,-1468.62,0.00041095,120]
[355554697,1741271023109,-756.76,0.00041095,120]
[355554698,1741271023134,-500.0,0.00041095,120]
[355554699,1741271023160,-500.0,0.00041095,120]
[355554700,1741271023184,-1110.36,0.00041095,120]
[355554701,1741271023211,-891.47,0.00041095,120]
[355554702,1741271023237,-884.06,0.00041095,120]
[355554703,1741271023262,-500.0,0.00041095,120]
[355554704,1741271023290,-500.0,0.00041095,120]
[355554705,1741271023315,-1074.64,0.00041095,120]
[355554706,1741271023340,-500.0,0.00041095,120]
[355554707,1741271023366,-500.0,0.00041095,120]
[355554708,1741271023391,-950.1,0.00041095,120]
[355554709,1741271023417,-500.0,0.00041095,120]
[355554710,1741271023443,-500.0,0.00041095,120]
[355554711,1741271023468,-1225.2,0.00041095,120]
[355554712,1741271023492,-500.0,0.00041095,120]
[355554713,1741271023516,-2162.05,0.00041095,120]
[355554714,1741271023544,-500.0,0.00041095,120]
[355554715,1741271023570,-1648.67,0.00041095,120]
[355554716,1741271023596,-500.0,0.00041095,120]
[355554717,1741271023622,-1829.08,0.00041095,120]
[355554718,1741271023648,-610.21,0.00041095,120]
[355554719,1741271023672,-500.0,0.00041095,120]
[355554720,1741271023701,-1064.07,0.00041095,120]
[355554721,1741271023892,-2114.99,0.00041095,120]
[355554722,1741271023919,-911.44,0.00041095,120]
[355554723,1741271023945,-531.27,0.00041095,120]
[355554724,1741271023970,-500.0,0.00041095,120]
[355554725,1741271023995,-636.67,0.00041095,120]
[355554726,1741271024021,-500.0,0.00041095,120]
[355554727,1741271024046,-584.29,0.00041095,120]
[355554728,1741271024072,-500.0,0.00041095,120]
[355554729,1741271024097,-500.0,0.00041095,120]
[355554730,1741271024122,-500.0,0.00041095,120]
[355554731,1741271024147,-647.06,0.00041095,120]
[355554732,1741271024173,-938.8,0.00041095,120]
[355554733,1741271024202,-636.14,0.00041095,120]
[355554734,1741271024228,-988.71,0.00041095,120]
[355554735,1741271024255,-962.89,0.00041095,120]
[355554736,1741271024282,-1193.91,0.00041095,120]
[355554737,1741271024309,-1080.04,0.00041095,120]
[355554738,1741271024335,-500.0,0.00041095,120]
[355554739,1741271024363,-548.17,0.00041095,120]
[355554740,1741271024389,-1071.92,0.00041095,120]
[355554741,1741271024415,-515.91,0.00041095,120]
[355554742,1741271024442,-500.0,0.00041095,120]
[355554743,1741271024467,-1187.86,0.00041095,120]
[355554744,1741271024493,-1547.49,0.00041095,120]
[355554745,1741271024520,-752.94,0.00041095,120]
[355554746,1741271024545,-1999.21,0.00041095,120]
[355554747,1741271024571,-508.31,0.00041095,120]
[355554748,1741271024597,-968.14,0.00041095,120]
[355554749,1741271024623,-500.0,0.00041095,120]
[355554750,1741271024647,-648.77,0.00041095,120]
[355554751,1741271024672,-954.53,0.00041095,120]
[355554752,1741271024698,-500.0,0.00041095,120]
[355554753,1741271024725,-500.0,0.00041095,120]
[355554754,1741271024751,-676.1,0.00041095,120]
[355554755,1741271024775,-1000.0,0.00041095,30]
[355554756,1741271024799,-1140.67,0.00041095,120]
[355554757,1741271024824,-500.0,0.00041095,120]
[355554758,1741271024849,-1042.73,0.00041095,120]
[355554759,1741271024874,-500.0,0.00041095,120]
[355554760,1741271024899,-500.0,0.00041095,120]
[355554761,1741271024924,-612.71,0.00041095,120]
[355554762,1741271024951,-760.52,0.00041095,120]
[355554763,1741271024976,-742.11,0.00041095,120]
[355554764,1741271025001,-500.0,0.00041095,120]
[355554765,1741271025027,-1001.19,0.00041095,120]
[355554766,1741271025052,-500.0,0.00041095,120]
[355554767,1741271025076,-4531.68,0.00041095,120]
[355554768,1741271025102,-741.51,0.00041095,120]
[355554769,1741271025127,-500.0,0.00041095,120]
[355554770,1741271025152,-500.0,0.00041095,120]
[355554771,1741271025177,-967.99,0.00041095,120]
[355554772,1741271025204,-1974.75,0.00041095,120]
[355554773,1741271025229,-500.0,0.00041095,120]
[355554774,1741271025253,-1553.24,0.00041095,120]
[355554775,1741271025278,-724.76,0.00041095,120]
[355554776,1741271025306,-500.0,0.00041095,120]
[355554777,1741271025332,-1006.48,0.00041095,120]
[355554778,1741271025357,-500.0,0.00041095,120]
[355554779,1741271025382,-500.0,0.00041095,120]
[355554780,1741271025408,-1042.97,0.00041095,120]
[355554781,1741271025434,-500.0,0.00041095,120]
[355554782,1741271025459,-795.85,0.00041095,120]
[355554783,1741271025485,-767.53,0.00041095,120]
[355554784,1741271025510,-1222.66,0.00041095,120]
[355554785,1741271025536,-11492.84,0.00041095,30]
[355554786,1741271025561,-500.0,0.00041095,120]
[355554787,1741271025586,-500.0,0.00041095,120]
[355554788,1741271025613,-500.0,0.00041095,120]
[355554789,1741271025638,-2286.32,0.00041095,120]
[355554790,1741271025663,-804.73,0.00041095,120]
[355554791,1741271025689,-891.44,0.00041095,120]
[355554792,1741271025714,-500.0,0.00041095,120]
[355554793,1741271025740,-860.38,0.00041095,120]
[355554794,1741271025765,-638.36,0.00041095,120]
[355554795,1741271025792,-7547.79,0.00041095,120]
[355554796,1741271025818,-6952.99,0.00041095,120]
[355554797,1741271025844,-8928.86,0.00041095,120]
[355554798,1741271025870,-500.0,0.00041095,120]
[355554799,1741271025896,-11217.98,0.00041095,120]
[355554800,1741271025922,-12650.34,0.00041095,120]
[355554801,1741271025948,-671.11,0.00041095,120]
[355554802,1741271025974,-1347.04,0.00041095,120]
[355554803,1741271026000,-743.57,0.00041095,120]
[355554804,1741271026026,-500.0,0.00041095,120]
[355554805,1741271026053,-14660.74,0.00041095,120]
[355554806,1741271026079,-743.24,0.00041095,120]
[355554807,1741271026105,-1243.9,0.00041095,120]
[355554808,1741271026131,-1229.39,0.00041095,120]
[355554809,1741271026157,-930.18,0.00041095,120]
[355554810,1741271026183,-500.0,0.00041095,120]
[355554811,1741271026211,-4141.21,0.00041095,120]
[355554812,1741271026236,-500.0,0.00041095,120]
[355554813,1741271026261,-4912.79,0.00041095,120]
[355554814,1741271026287,-1019.55,0.00041095,120]
[355554815,1741271026312,-1927.41,0.00041095,120]
[355554816,1741271026338,-562.37,0.00041095,120]
[355554817,1741271026363,-588.98,0.00041095,120]
[355554818,1741271026389,-1728.34,0.00041095,120]
[355554819,1741271026415,-773.49,0.00041095,120]
[355554820,1741271026441,-989.07,0.00041095,120]
[355554821,1741271026465,-780.02,0.00041095,120]
[355554822,1741271026492,-1721.71,0.00041095,120]
[355554823,1741271026522,-1621.8,0.00041095,120]
[355554824,1741271026551,-3792.33,0.00041095,120]
[355554825,1741271026578,-1769.32,0.00041095,120]
[355554826,1741271026742,-500.0,0.00041095,120]
[355554827,1741271026768,-500.0,0.00041095,120]
[355554828,1741271026794,-539.76,0.00041095,120]
[355554829,1741271026820,-6300.9,0.00041095,120]
[355554830,1741271026846,-183.08407017,0.00041095,120]
[355554831,1741271026871,-1291.62,0.00041095,120]
[355554832,1741271026896,-629.53,0.00041095,120]
[355554833,1741271026922,-1376.17,0.00041095,120]
[355554834,1741271026948,-500.0,0.00041095,120]
[355554835,1741271026973,-2291.69,0.00041095,120]
[355554836,1741271026998,-500.0,0.00041095,30]
[355554837,1741271027024,-13081.35,0.00041095,120]
[355554838,1741271027049,-956.01,0.00041095,120]
[355554839,1741271027074,-1308.06,0.00041095,120]
[355554840,1741271027099,-673.65,0.00041095,120]
[355554841,1741271027124,-1988.24,0.00041095,120]
[355554842,1741271027148,-7915.38,0.00041095,120]
[355554843,1741271027173,-4641.08,0.00041095,120]
[355554844,1741271027198,-500.0,0.00041095,120]
[355554845,1741271027222,-1415.17,0.00041095,120]
[355554846,1741271027247,-520.03,0.00041095,120]
[355554847,1741271027273,-500.0,0.00041095,120]
[355554848,1741271027298,-534.2,0.00041095,120]
[355554849,1741271027322,-676.27,0.00041095,120]
[355554850,1741271027347,-500.0,0.00041095,120]
[355554851,1741271027372,-2241.31,0.00041095,120]
[355554852,1741271027399,-3026.45,0.00041095,120]
[355554853,1741271027424,-965.35,0.00041095,120]
[355554854,1741271027450,-2375.11,0.00041095,120]
[355554855,1741271027475,-500.0,0.00041095,120]
[355554856,1741271027500,-2052.47,0.00041095,120]
[355554857,1741271027527,-610.1,0.00041095,120]
[355554858,1741271027554,-2164.86,0.00041095,120]
[355554859,1741271027581,-3883.6,0.00041095,120]
[355554860,1741271027608,-971.78,0.00041095,120]
[355554861,1741271027634,-544.43,0.00041095,120]
[355554862,1741271027659,-1730.51,0.00041095,120]
[355554863,1741271027684,-6002.47,0.00041095,120]
[355554864,1741271027710,-3005.74,0.00041095,120]
[355554865,1741271027735,-565.16,0.00041095,120]
[355554866,1741271027760,-1270.54,0.00041095,120]
[355554867,1741271027786,-4089.33,0.00041095,120]
[355554868,1741271027811,-1167.51,0.00041095,120]
[355554869,1741271027837,-16645.64,0.00041095,120]
[355554870,1741271027863,-2489.8,0.00041095,120]
[355554871,1741271027887,-4966.92,0.00041095,120]
[355554872,1741271027912,-1075.99,0.00041095,120]
[355554873,1741271027939,-2879.45,0.00041095,120]
[355554874,1741271027964,-500.0,0.00041095,120]
[355554875,1741271027990,-1911.45,0.00041095,120]
[355554876,1741271028016,-500.0,0.00041095,120]
[355554877,1741271028041,-1700.74,0.00041095,120]
[355554878,1741271028066,-1125.31,0.00041095,120]
[355554879,1741271028091,-2577.76,0.00041095,120]
[355554880,1741271028115,-249.49492495,0.00041095,120]
[355554881,1741271028140,-151.0,0.00041096,120]
[355554882,1741271028166,-151.0,0.00041096,120]
[355554883,1741271028191,-151.0,0.00041096,120]
[355554884,1741271028216,-151.0,0.00041096,120]
[355554885,1741271028241,-299.254316,0.00041096,120]
[355554886,1741271028267,-688.94438521,0.000411,120]
[355554887,1741271028293,-688.94438521,0.000411,120]
[355554888,1741271028319,-688.94438521,0.000411,120]
[355554889,1741271028346,-688.94438521,0.000411,120]
[355554890,1741271028373,-688.94438521,0.000411,120]
[355554891,1741271028399,-688.94438521,0.000411,120]
[355554892,1741271028426,-688.94438521,0.000411,120]
[355554893,1741271028454,-688.94438521,0.000411,120]
[355554894,1741271028481,-688.94438521,0.000411,120]
[355554895,1741271028508,-688.94438521,0.000411,120]
[355554896,1741271028537,-688.94438521,0.000411,120]
[355554897,1741271028563,-688.94438521,0.000411,120]
[355554898,1741271028589,-688.94438521,0.000411,120]
[355554899,1741271028617,-688.94438521,0.000411,120]
[355554900,1741271028643,-688.94438521,0.000411,120]
[355554901,1741271028669,-688.94438521,0.000411,120]
[355554902,1741271028697,-688.94438521,0.000411,120]
[355554903,1741271028722,-688.94438521,0.000411,120]
[355554904,1741271028747,-688.94438521,0.000411,120]
[355554905,1741271028772,-688.94,0.000411,120]
[355554906,1741271028797,-1607.53689882,0.000411,120]
[355554907,1741271028823,-1607.53689882,0.000411,120]
[355554908,1741271028848,-1607.53689882,0.000411,120]
[355554909,1741271028873,-1607.53689882,0.000411,120]
[355554910,1741271028899,-1607.53689882,0.000411,120]
[355554911,1741271028924,-1607.53689882,0.000411,120]
[355554912,1741271028951,-1607.53689882,0.000411,120]
[355554913,1741271028979,-1607.53689882,0.000411,120]
[355554914,1741271029007,-1607.53689882,0.000411,120]
[355554915,1741271029034,-1607.53689882,0.000411,120]
[355554916,1741271029061,-1607.53689882,0.000411,120]
[355554917,1741271029088,-1607.53689882,0.000411,120]
[355554918,1741271029114,-1607.53689882,0.000411,120]
[355554919,1741271029141,-1607.53689882,0.000411,120]
[355554920,1741271029168,-1607.53689882,0.000411,120]
[355554921,1741271029195,-1607.53689882,0.000411,120]
[355554922,1741271029221,-1607.53689882,0.000411,120]
[355554923,1741271029248,-1607.53689882,0.000411,120]
[355554924,1741271029274,-1607.53689882,0.000411,120]
[355554925,1741271029302,-1607.53,0.000411,120]
[355554926,1741271029328,-561.03,0.00041369,120]
[355554927,1741271029354,-500.0,0.00041369,120]
[355554928,1741271029381,-687.89,0.00041369,120]
[355554929,1741271029410,-1099.59,0.00041369,120]
[355554930,1741271029436,-752.11,0.00041369,120]
[355554931,1741271029610,-1468.62,0.00041369,120]
[355554932,1741271029638,-756.76,0.00041369,120]
[355554933,1741271029665,-500.0,0.00041369,120]
[355554934,1741271029692,-350.35188647,0.00041369,120]
[355554935,1741271029718,-1110.36,0.00041369,120]
[355554936,1741271029744,-891.47,0.00041369,120]
[355554937,1741271029770,-884.06,0.00041369,120]
[355554938,1741271029795,-500.0,0.00041369,120]
[355554939,1741271029821,-500.0,0.00041369,120]
[355554940,1741271029847,-1074.64,0.00041369,120]
[355554941,1741271029873,-500.0,0.00041369,120]
[355554942,1741271029898,-500.0,0.00041369,120]
[355554943,1741271029924,-950.1,0.00041369,120]
[355554944,1741271029949,-500.0,0.00041369,120]
[355554945,1741271029974,-500.0,0.00041369,120]
[355554946,1741271030000,-1225.2,0.00041369,120]
[355554947,1741271030026,-500.0,0.00041369,120]
[355554948,1741271030050,-2162.05,0.00041369,120]
[355554949,1741271030074,-407.84601995,0.00041369,120]
[355554950,1741271030099,-1648.67,0.00041369,120]
[355554951,1741271030124,-500.0,0.00041369,120]
[355554952,1741271030157,-1829.08,0.00041369,120]
[355554953,1741271030182,-610.21,0.00041369,120]
[355554954,1741271030207,-500.0,0.00041369,120]
[355554955,1741271030231,-1064.07,0.00041369,120]
[355554956,1741271030256,-2114.99,0.00041369,120]
[355554957,1741271030282,-911.44,0.00041369,120]
[355554958,1741271030307,-531.27,0.00041369,120]
[355554959,1741271030332,-500.0,0.00041369,120]
[355554960,1741271030357,-636.67,0.00041369,120]
[355554961,1741271030382,-500.0,0.00041369,120]
[355554962,1741271030406,-584.29,0.00041369,120]
[355554963,1741271030430,-500.0,0.00041369,120]
[355554964,1741271030455,-500.0,0.00041369,120]
[355554965,1741271030480,-155.00521448,0.00041369,120]
[355554966,1741271030504,-647.06,0.00041369,120]
[355554967,1741271030531,-938.8,0.00041369,120]
[355554968,1741271030555,-636.14,0.00041369,120]
[355554969,1741271030580,-988.71,0.00041369,120]
[355554970,1741271030605,-962.89,0.00041369,120]
[355554971,1741271030630,-1193.91,0.00041369,120]
[355554972,1741271030653,-1080.04,0.00041369,120]
[355554973,1741271030678,-500.0,0.00041369,120]
[355554974,1741271030703,-548.17,0.00041369,120]
[355554975,1741271030738,-1071.92,0.00041369,120]
[355554976,1741271030771,-515.91,0.00041369,120]
[355554977,1741271030804,-500.0,0.00041369,120]
[355554978,1741271030836,-1187.86,0.00041369,120]
[355554979,1741271030871,-1547.49,0.00041369,120]
[355554980,1741271030904,-752.94,0.00041369,120]
[355554981,1741271030937,-1999.21,0.00041369,120]
[355554982,1741271030974,-508.31,0.00041369,120]
[355554983,1741271031009,-968.14,0.00041369,120]
[355554984,1741271031044,-500.0,0.00041369,120]
[355554985,1741271031080,-648.77,0.00041369,120]
[355554986,1741271031114,-954.53,0.00041369,120]
[355554987,1741271031147,-539.42267904,0.00041369,120]
[355554988,1741271031180,-500.0,0.00041369,120]
[355554989,1741271031214,-676.1,0.00041369,120]
[355554990,1741271031252,-1000.0,0.00041369,30]
[355554991,1741271031291,-1140.67,0.00041369,120]
[355554992,1741271031329,-500.0,0.00041369,120]
[355554993,1741271031365,-1042.73,0.00041369,120]
[355554994,1741271031399,-500.0,0.00041369,120]
[355554995,1741271031435,-500.0,0.00041369,120]
[355554996,1741271031470,-612.71,0.00041369,120]
[355554997,1741271031504,-760.52,0.00041369,120]
[355554998,1741271031539,-742.11,0.00041369,120]
[355554999,1741271031573,-500.0,0.00041369,120]
[355555000,1741271031609,-1001.19,0.00041369,120]
[355555001,1741271031644,-500.0,0.00041369,120]
[355555002,1741271031679,-4531.68,0.00041369,120]
[355555003,1741271031716,-741.51,0.00041369,120]
[355555004,1741271031752,-500.0,0.00041369,120]
[355555005,1741271031786,-500.0,0.00041369,120]
[355555006,1741271031823,-967.99,0.00041369,120]
[355555007,1741271031859,-1974.75,0.00041369,120]
[355555008,1741271031896,-500.0,0.00041369,120]
[355555009,1741271031933,-1553.24,0.00041369,120]
[355555010,1741271031969,-724.76,0.00041369,120]
[355555011,1741271032004,-500.0,0.00041369,120]
[355555012,1741271032042,-1006.48,0.00041369,120]
[355555013,1741271032078,-500.0,0.00041369,120]
[355555014,1741271032115,-500.0,0.00041369,120]
[355555015,1741271032152,-1042.97,0.00041369,120]
[355555016,1741271032189,-500.0,0.00041369,120]
[355555017,1741271032227,-795.85,0.00041369,120]
[355555018,1741271032265,-767.53,0.00041369,120]
[355555019,1741271032302,-1222.66,0.00041369,120]
[355555020,1741271032341,-11492.84,0.00041369,30]
[355555021,1741271032379,-500.0,0.00041369,120]
[355555022,1741271032419,-500.0,0.00041369,120]
[355555023,1741271032457,-500.0,0.00041369,120]
[355555024,1741271032495,-804.73,0.00041369,120]
[355555025,1741271032532,-891.44,0.00041369,120]
[355555026,1741271032570,-500.0,0.00041369,120]
[355555027,1741271032608,-860.38,0.00041369,120]
[355555028,1741271032644,-638.36,0.00041369,120]
[355555029,1741271032679,-7547.79,0.00041369,120]
[355555030,1741271032717,-6952.99,0.00041369,120]
[355555031,1741271032753,-8928.86,0.00041369,120]
[355555032,1741271032790,-500.0,0.00041369,120]
[355555033,1741271032838,-11217.98,0.00041369,120]
[355555034,1741271033070,-12650.34,0.00041369,120]
[355555035,1741271033105,-671.11,0.00041369,120]
[355555036,1741271033141,-1347.04,0.00041369,120]
[355555037,1741271033175,-743.57,0.00041369,120]
[355555038,1741271033211,-500.0,0.00041369,120]
[355555039,1741271033247,-14660.74,0.00041369,120]
[355555040,1741271033283,-743.24,0.00041369,120]
[355555041,1741271033318,-1243.9,0.00041369,120]
[355555042,1741271033353,-1229.39,0.00041369,120]
[355555043,1741271033388,-930.18,0.00041369,120]
[355555044,1741271033422,-500.0,0.00041369,120]
[355555045,1741271033457,-4141.21,0.00041369,120]
[355555046,1741271033491,-500.0,0.00041369,120]
[355555047,1741271033526,-4912.79,0.00041369,120]
[355555048,1741271033561,-1019.55,0.00041369,120]
[355555049,1741271033598,-1927.41,0.00041369,120]
[355555050,1741271033634,-562.37,0.00041369,120]
[355555051,1741271033671,-588.98,0.00041369,120]
[355555052,1741271033711,-1728.34,0.00041369,120]
[355555053,1741271033746,-773.49,0.00041369,120]
[355555054,1741271033790,-989.07,0.00041369,120]
[355555055,1741271033831,-780.02,0.00041369,120]
[355555056,1741271033870,-1721.71,0.00041369,120]
[355555057,1741271033909,-1621.8,0.00041369,120]
[355555058,1741271033948,-3792.33,0.00041369,120]
[355555059,1741271033985,-1769.32,0.00041369,120]
[355555060,1741271034024,-500.0,0.00041369,120]
[355555061,1741271034062,-500.0,0.00041369,120]
[355555062,1741271034102,-539.76,0.00041369,120]
[355555063,1741271034141,-6300.9,0.00041369,120]
[355555064,1741271034179,-1291.62,0.00041369,120]
[355555065,1741271034223,-629.53,0.00041369,120]
[355555066,1741271034262,-1376.17,0.00041369,120]
[355555067,1741271034298,-500.0,0.00041369,120]
[355555068,1741271034338,-2291.69,0.00041369,120]
[355555069,1741271034375,-500.0,0.00041369,30]
[355555070,1741271034413,-13081.35,0.00041369,120]
[355555071,1741271034453,-956.01,0.00041369,120]
[355555072,1741271034491,-1308.06,0.00041369,120]
[355555073,1741271034532,-673.65,0.00041369,120]
[355555074,1741271034572,-1988.24,0.00041369,120]
[355555075,1741271034609,-7915.38,0.00041369,120]
[355555076,1741271034650,-4641.08,0.00041369,120]
[355555077,1741271034690,-500.0,0.00041369,120]